[Event "27th Sharjah International Rapid Chess-c"]
[Site "Sharjah"]
[Date "2022.04.07"]
[Round "5.8"]
[White "Devnani Kush"]
[Black "Al Hosani, Omran"]
[Result "1/2-1/2"]
[ECO "D85"]
[WhiteElo "2041"]
[BlackElo "2191"]
[Annotator "RC"]
[PlyCount "121"]
[EventDate "2022.04.07"]
[EventType "rapid"]
[EventCountry "UAE"]
[SourceTitle "playchess.com"]
[Source "ChessBase"]
[SourceQuality "1"]
[TimeControl "600+3"]

1. d4 {[%emt 0:00:03]} Nf6 {[%emt 0:00:14]} 2. c4 {[%emt 0:00:02]} g6 {[%emt 0:00:02]} 3. Nc3 {[%emt 0:00:01]} d5 {[%emt 0:00:01]} 4. cxd5 {[%emt 0:00:02]} Nxd5 {[%emt 0:00:01]} 5. Bd2 {[%emt 0:00:02]} Bg7 {[%emt 0:00:11]} 6. e4 {[%emt 0:00:02]} Nxc3 {[%emt 0:00:24]} 7. Bxc3 {[%emt 0:00:01]} O-O {[%emt 0:00:05]} 8. Qd2 {[%emt 0:00:04]} Nd7 {[%emt 0:01:16]} 9. Nf3 {[%emt 0:00:14]} c5 {[%emt 0:00:06]} 10. d5 Nf6 {[%emt 0:01:27]} 11. Qc2 {[%emt 0:01:59]} Bg4 {[%emt 0:01:36]} 12. Ne5 {[%emt 0:00:44]} Qc7 {[%emt 0:00:02]} 13. Nxg4 {[%emt 0:00:58]} Nxg4 {[%emt 0:00:01]} 14. Be2 {[%emt 0:00:50]} Qf4 {[%emt 0:00:38]} 15. Bxg4 {[%emt 0:00:06]} Bxc3+ {[%emt 0:00:50]} 16. bxc3 {[%emt 0:00:08]} Qxg4 {[%emt 0:00:02]} 17. O-O {[%emt 0:00:03]} Qf4 {[%emt 0:00:18]} 18. Rfe1 {[%emt 0:00:13]} Rad8 {[%emt 0:00:32]} 19. Rab1 {[%emt 0:00:10]} b6 {[%emt 0:00:28]} 20. c4 {[%emt 0:00:37]} e6 {[%emt 0:00:14]} 21. Qa4 {[%emt 0:00:08]} exd5 {[%emt 0:00:09]} 22. cxd5 {[%emt 0:01:16]} f5 {[%emt 0:00:33]} 23. g3 {[%emt 0:00:52]} Qg4 {[%emt 0:00:22]} 24. Qxa7 {[%emt 0:00:28]} fxe4 {[%emt 0:00:05]} 25. Qxb6 {[%emt 0:00:28]} Rxd5 {[%emt 0:00:44]} 26. Qc6 {[%emt 0:00:22]} Qf5 {[%emt 0:00:49]} 27. Rb2 {[%emt 0:00:20]} Rf7 {[%emt 0:00:03]} 28. Qe8+ {[%emt 0:00:38]} Kg7 {[%emt 0:00:04]} 29. Qxe4 {[%emt 0:00:04]} Rd1 {[%emt 0:00:07]} 30. Qe3 {[%emt 0:00:10]} Rd3 {[%emt 0:00:03]} 31. Qe5+ {[%emt 0:00:04]} Qxe5 {[%emt 0:00:01]} 32. Rxe5 {[%emt 0:00:01]} c4 {[%emt 0:00:02]} 33. Rc5 {[%emt 0:00:08]} c3 {[%emt 0:00:02]} 34. Rc2 {[%emt 0:00:01]} Ra7 {[%emt 0:00:05]} 35. R5xc3 {[%emt 0:00:08]} Rxc3 {[%emt 0:00:02]} 36. Rxc3 {[%emt 0:00:01]} Rxa2 {[%emt 0:00:01]} 37. Kg2 {[%emt 0:00:04]} Ra7 {[%emt 0:00:03]} 38. Rc6 {[%emt 0:00:03]} Rd7 {[%emt 0:00:03]} 39. g4 {[%emt 0:00:07]} Rd4 {[%emt 0:00:04]} 40. Kg3 {[%emt 0:00:02]} Rd3+ {[%emt 0:00:03]} 41. f3 {[%emt 0:00:01]} Rd7 {[%emt 0:00:02]} 42. h4 {[%emt 0:00:03]} Ra7 {[%emt 0:00:06]} 43. Rc4 {[%emt 0:00:04]} Rd7 {[%emt 0:00:01]} 44. Re4 {[%emt 0:00:02]} Ra7 {[%emt 0:00:01]} 45. Re3 {[%emt 0:00:08]} Rb7 {[%emt 0:00:01]} 46. f4 {[%emt 0:00:01]} Rf7 {[%emt 0:00:07]} 47. Re5 {[%emt 0:00:04]} Ra7 {[%emt 0:00:06]} 48. h5 {[%emt 0:00:02]} gxh5 {[%emt 0:00:04]} 49. Rxh5 {[%emt 0:00:03]} Re7 {[%emt 0:00:02]} 50. Kh4 {[%emt 0:00:04]} Rf7 {[%emt 0:00:03]} 51. Kg3 {[%emt 0:00:06]} Ra7 {[%emt 0:00:02]} 52. Rg5+ {[%emt 0:00:01]} Kf7 {[%emt 0:00:02]} 53. Rc5 {[%emt 0:00:04]} Kg7 {[%emt 0:00:03]} 54. Kh4 {[%emt 0:00:01]} Rf7 {[%emt 0:00:03]} 55. Kg5 {[%emt 0:00:03]} h6+ {[%emt 0:00:03]} 56. Kh5 {[%emt 0:00:04]} Rxf4 {[%emt 0:00:03]} 57. Rc7+ {[%emt 0:00:05]} Kg8 {[%emt 0:00:04]} 58. Rc8+ {[%emt 0:00:10]} Kg7 {[%emt 0:00:02]} 59. Rc7+ {[%emt 0:00:05]} Kg8 {[%emt 0:00:01]} 60. Kxh6 {[%emt 0:00:04]} Rxg4 {[%emt 0:00:02]} 61. Kh5 1/2-1/2

[Event "27th Sharjah International Rapid Chess-c"]
[Site "Sharjah"]
[Date "2022.04.07"]
[Round "5.9"]
[White "Miladinovic, Igor"]
[Black "Al Namas, Kanan"]
[Result "1-0"]
[ECO "A45"]
[WhiteElo "2509"]
[BlackElo "1555"]
[Annotator "TA"]
[PlyCount "73"]
[EventDate "2022.04.07"]
[EventType "rapid"]
[EventCountry "UAE"]
[SourceTitle "playchess.com"]
[Source "ChessBase"]
[SourceQuality "1"]
[TimeControl "600+3"]

{[%evp 9,73,12,26,7,41,-1,31,26,54,50,83,95,79,55,104,60,93,81,147,120,167,162,173,180,193,177,174,179,257,262,257,239,250,198,327,357,310,208,212,208,674,677,681,681,678,668,647,655,704,691,708,699,723,711,893,869,2094,1990,5506,5502,5481,3921,29983,29984,29991,29991]} 1. d4 {[%emt 0:00:04]} Nf6 {[%emt 0:00:04]} 2. Bg5 {[%emt 0:00:01]} c5 {[%emt 0:00:14]} 3. dxc5 {[%emt 0:00:06]} Qa5+ {[%emt 0:00:06]} 4. Nd2 {[%emt 0:00:03]} Qxc5 {[%emt 0:00:05]} 5. Bxf6 {[%emt 0:00:02]} gxf6 {[%emt 0:00:16]} 6. c3 {[%emt 0:00:01] A45: Trompowsky Attack.} Nc6 {[%emt 0:00:24] [#]} 7. g3 $146 {[%emt 0:00:12]} ({Predecessor:} 7. Ngf3 d6 8. a4 h5 9. h4 Ne5 10. e3 Ng4 11. Bb5+ Kd8 12. Qe2 Bh6 13. Nb3 {1-0 (68) Miladinovic,I (2519)-Abbasov,F (2439) Ohrid 2001}) 7... b5 {[%emt 0:01:01]} 8. Bg2 {[%emt 0:00:12] White is slightly better.} Bb7 {[%emt 0:00:03]} 9. Ngf3 {[%emt 0:00:09]} Ne5 {[%emt 0:01:05]} 10. O-O {[%emt 0:00:42]} Nxf3+ {[%emt 0:00:04]} 11. Nxf3 {[%emt 0:00:29]} h5 {[%emt 0:00:17] White now steadily converts the win.} (11... e6 $14 {was preferrable.}) 12. h4 {[%emt 0:00:32]} Qb6 {[%emt 0:00:15]} 13. a4 {[%emt 0:00:06]} a6 {[%emt 0:00:51]} ({Black should play} 13... b4) 14. axb5 $16 {[%emt 0:00:05]} axb5 {[%emt 0:00:02]} (14... Qxb5 $16 15. Nd4 Qb6) 15. Qd4 $18 {[%emt 0:00:21]} Qc7 {[%emt 0:00:26]} 16. Rxa8+ {[%emt 0:00:18]} Bxa8 {[%emt 0:00:01]} 17. Ra1 {[%emt 0:00:01]} Bc6 {[%emt 0:00:03]} 18. Nd2 {[%emt 0:00:22][%cal Bf3d2,Bd2e4,Be4c5,Bc5a6][%mdl 32]} Bh6 {[%emt 0:00:20]} (18... Bxg2 $142 19. Kxg2 Qc6+ 20. Nf3 Bg7) 19. Ra7 {[%emt 0:00:21]} Qc8 {[%emt 0:00:16]} 20. Bxc6 {[%emt 0:00:39]} Qxc6 {[%emt 0:00:01]} 21. Ne4 {[%emt 0:00:11]} Rg8 {[%emt 0:00:27]} (21... O-O $142 22. Rxd7 f5) 22. Nc5 {[%emt 0:00:24]} d6 {[%emt 0:00:16]} 23. Na6 $40 {[%emt 0:00:27][%mdl 128] aiming for Nb4. White attacks with force.} Rg4 {[%emt 0:00:14]} 24. Qd3 {[%emt 0:00:34]} Ra4 $2 {[%emt 0:01:57] [#]} (24... Kf8 25. Nb4 Qe4) 25. Ra8+ $1 {[%emt 0:00:11][%mdl 512]} Qxa8 {[%emt 0:00:42]} 26. Nc7+ {[%emt 0:00:02]} Kf8 {[%emt 0:00:10] ( -> ...Ra1+)} 27. Nxa8 {[%emt 0:00:02]} Rxa8 {[%emt 0:00:02]} 28. Qxb5 {[%emt 0:00:02][%mdl 4096] Endgame KQ-KRB} Kg7 {[%emt 0:00:24]} 29. e3 {[%emt 0:00:07]} Ra1+ {[%emt 0:00:11]} 30. Kg2 {[%emt 0:00:01]} Rc1 {[%emt 0:00:01]} 31. Qe2 {[%emt 0:00:49] Prevents Rc2.} f5 {[%emt 0:00:11]} 32. b4 {[%emt 0:00:12][%cal Bb2b4,Bb4b5,Bb5b6,Bb6b7][%mdl 32] [#] And now Qb2 would win.} Kg6 {[%emt 0:00:06]} 33. Qb2 {[%emt 0:00:06]} Rd1 {[%emt 0:00:38]} 34. b5 {[%emt 0:00:03] White wants to mate with b6.} Bg7 {[%emt 0:00:01]} 35. b6 {[%emt 0:00:01] White threatens b7 and mate.} Rd3 {[%emt 0:00:01]} 36. b7 {[%emt 0:00:02]} Bxc3 {[%emt 0:00:02]} 37. Qb1 {[%emt 0:00:05] Weighted Error Value: White=0.12 (very precise) /Black=0.85} 1-0

[Event "27th Sharjah International Rapid Chess-c"]
[Site "Sharjah"]
[Date "2022.04.07"]
[Round "5.10"]
[White "Reyes, Danilo G."]
[Black "Dimakiling, Oliver"]
[Result "0-1"]
[ECO "B30"]
[WhiteElo "1605"]
[BlackElo "2420"]
[Annotator "TA"]
[PlyCount "62"]
[EventDate "2022.04.07"]
[EventType "rapid"]
[EventCountry "UAE"]
[SourceTitle "playchess.com"]
[Source "ChessBase"]
[SourceQuality "1"]
[TimeControl "600+3"]

{[%evp 13,61,-4,-8,-23,0,-30,-16,-47,-23,-78,-62,-101,-74,-87,-59,-102,-75,-126,-81,-102,-110,-170,-164,-294,-286,-536,-538,-531,-502,-558,-443,-415,-416,-447,-229,-1142,-1150,-1120,-1095,-1472,-1217,-1216,-1225,-1204,-1174,-1175,-1122,-29993,-29994,-29999]} 1. e4 {[%emt 0:00:02]} c5 {[%emt 0:00:05]} 2. Nf3 {[%emt 0:00:06]} Nc6 {[%emt 0:00:02]} 3. g3 {[%emt 0:00:04]} g6 {[%emt 0:00:04]} 4. Bg2 {[%emt 0:00:01]} Bg7 {[%emt 0:00:02]} 5. O-O {[%emt 0:00:03]} e5 {[%emt 0:00:02]} 6. d3 {[%emt 0:00:01]} Nge7 {[%emt 0:00:03]} 7. c3 {[%emt 0:00:01]} O-O {[%emt 0:00:05]} 8. Re1 {[%emt 0:00:09] A04: Unusual lines after 1 Nf3 and King's Indian Attack.} d5 {[%emt 0:00:05] was the old line (8...d6).} 9. Qc2 {[%emt 0:00:14]} h6 {[%emt 0:00:03]} 10. Nbd2 {[%emt 0:00:02] The position is equal.} Be6 {[%emt 0:00:03]} 11. Nf1 {[%emt 0:00:03]} (11. exd5 $11 {remains equal.} Bxd5 12. h4) 11... Qd7 {[%emt 0:00:08] [#]} 12. a4 $146 {[%emt 0:00:38]} ({Predecessor:} 12. Ne3 d4 13. cxd4 cxd4 14. Nf1 Nb4 15. Qb1 Rfc8 16. Re2 Qb5 17. Ne1 Bxa2 18. Rxa2 Nxa2 {0-1 (18) Borg,F (1855)-Lindgren,P (2287) Helsingor 2013}) 12... Rad8 {[%emt 0:00:07]} 13. a5 {[%emt 0:00:38]} f5 {[%emt 0:00:31]} 14. exf5 {[%emt 0:00:45]} Bxf5 {[%emt 0:00:34] Threatens to win with ...c4.} 15. Ne3 {[%emt 0:00:24] Prevents c4.} ({White should play} 15. Qe2) 15... Bh3 {[%emt 0:00:09] White must now prevent ...Bxg2.} 16. Bh1 {[%emt 0:00:12]} g5 {[%emt 0:00:17] &Nero is more active.} 17. a6 {[%emt 0:00:10]} (17. Qb3 $17) 17... b6 $19 {[%emt 0:00:07]} 18. c4 {[%emt 0:01:42]} (18. Qb3 $142) 18... Nb4 {[%emt 0:00:07]} 19. Qb3 {[%emt 0:00:20] [#]} (19. Qd1 {is a better defense.}) 19... e4 {[%emt 0:03:10]} 20. dxe4 {[%emt 0:00:34]} dxe4 {[%emt 0:00:02]} 21. Rd1 {[%emt 0:00:23]} Qe6 {[%emt 0:00:35]} ({But not} 21... exf3 $2 22. Rxd7 Rxd7 23. Nd5 $19) ({Inferior is} 21... Nd3 22. Ne1 $19) 22. Rxd8 {[%emt 0:00:43]} Rxd8 {[%emt 0:00:02]} 23. Nd2 {[%emt 0:00:03]} Nec6 {[%emt 0:00:14]} (23... Rd3 $142 24. Qd1 Nf5 25. Nxf5 Bxf5) 24. Nd5 $2 {[%emt 0:02:15]} (24. Qd1) 24... Nd4 {[%emt 0:00:10][%cal Rd4e2] [#]} 25. Qd1 {[%emt 0:00:01] Inhibits Ne2+.} Bg4 {[%emt 0:00:33]} 26. f3 {[%emt 0:00:07]} exf3 {[%emt 0:00:06]} 27. Bxf3 {[%emt 0:00:18]} Nxf3+ {[%emt 0:00:11]} 28. Nxf3 {[%emt 0:00:11]} Nxd5 {[%emt 0:00:03]} 29. cxd5 {[%emt 0:00:14]} Rxd5 {[%emt 0:00:02]} 30. Qe1 {[%emt 0:00:03]} Bd4+ {[%emt 0:00:08] A strong pair of Bishops.} 31. Kf1 {[%emt 0:00:08]} Bh3# {[%emt 0:00:07] White did not feel at home in the position after the opening.  Weighted Error Value: White=0.95/Black=0.45} 0-1

[Event "27th Sharjah International Rapid Chess-c"]
[Site "Sharjah"]
[Date "2022.04.07"]
[Round "5.11"]
[White "Ali, Sebbar"]
[Black "Abdulrahim, Salem"]
[Result "1-0"]
[ECO "D64"]
[WhiteElo "2399"]
[BlackElo "1684"]
[Annotator "TA"]
[PlyCount "69"]
[EventDate "2022.04.07"]
[EventType "rapid"]
[EventCountry "UAE"]
[SourceTitle "playchess.com"]
[Source "ChessBase"]
[SourceQuality "1"]
[TimeControl "600+3"]

{[%evp 20,69,42,42,48,51,83,81,81,84,117,88,90,100,129,87,87,43,84,69,84,84,102,58,62,-53,-40,-49,150,114,199,146,202,0,0,0,0,0,43,-20,0,0,0,-57,0,0,80,66,73,66,307,330]} 1. d4 d5 2. c4 e6 3. Nc3 Nf6 4. Nf3 Be7 5. Bg5 O-O 6. e3 c6 7. Qc2 Nbd7 {[%cal Bb8d7,Bd7f8,Bf8g6,Bg6e7,Be7d5][%mdl 32]} 8. Rc1 Re8 9. a3 Nf8 10. Bd3 Ng6 11. O-O dxc4 {D64: Queen's Gambit Declined: Classical: 7 Rc1 c6 8 Qc2.} 12. Bxc4 {[#]} h6 $146 ({Predecessor:} 12... Nd5 13. Bxe7 Qxe7 14. Bd3 Bd7 15. Rfd1 Rec8 16. g3 Nf6 17. Na4 b6 18. Rb1 c5 19. dxc5 Bxa4 20. Qxa4 Rxc5 {1-0 (35) Kuligowski,A (2465)-Erlingsson,J (2225) Reykjavik 1982}) 13. Bxf6 Bxf6 {White is better.} 14. Bd3 Ne7 15. Rfd1 Nd5 16. Ne4 g6 17. Ne5 Bg7 18. Nc4 Bf8 19. g3 Nf6 20. Ned2 Nd7 21. b4 e5 22. Bxg6 fxg6 $15 23. Qxg6+ Kh8 $2 {[#]} (23... Bg7 $1 $15 {stays ahead.} 24. Ne4 (24. Nd6 Rf8 $17) 24... exd4) 24. Ne4 $1 $16 {&Bianco is much more active. The black rooks are badly placed.} Bg7 (24... Re7 $16) 25. Ncd6 {Pair of Knights!} (25. dxe5 $18 {[%cal Oe4f6] Strongly threatening Nf6!} Qe7 26. f4) 25... Rf8 {Inhibits Nf6.} (25... Re7 $16 {was called for.}) 26. Nf7+ $2 (26. Nf5 {[#]} Rxf5 $1 27. Qxf5 exd4 $11) ({White should play} 26. d5 $18 Nf6 27. dxc6) 26... Rxf7 $1 $11 27. Qxf7 $40 {[%mdl 128] Threatens to win with dxe5. Black needs to defend precisely.} exd4 28. exd4 Nf6 29. Nc5 (29. Re1 $14 Qd5 30. Qxd5 (30. Qe7 Bh3 $11) 30... Nxd5 31. Nd6) 29... Qd5 30. Qxd5 Nxd5 31. Rd2 (31. Re1 $11) 31... b6 (31... a5 $15) 32. Nd3 Bd7 (32... a5 $11) 33. Ne5 $16 Bxe5 34. dxe5 {[%cal Ob4b5] aiming for b5!} Re8 $2 (34... a6 $14) 35. b5 $1 {Weighted Error Value: White=0.40/Black=0.57} 1-0

[Event "27th Sharjah International Rapid Chess-c"]
[Site "Sharjah"]
[Date "2022.04.07"]
[Round "5.12"]
[White "Zubarev, Alexander"]
[Black "Khalifa Essa, Albalooshi"]
[Result "1-0"]
[ECO "A04"]
[WhiteElo "2372"]
[BlackElo "1647"]
[Annotator "TA"]
[PlyCount "37"]
[EventDate "2022.04.07"]
[EventType "rapid"]
[EventCountry "UAE"]
[SourceTitle "playchess.com"]
[Source "ChessBase"]
[SourceQuality "1"]
[TimeControl "600+3"]

{[%evp 9,37,212,206,208,209,201,235,174,351,150,185,178,180,171,444,452,455,445,480,485,518,471,633,619,631,631,625,614,580,574]} 1. Nf3 {[%emt 0:00:04][%cal Bg1f3,Bf3g5,Bg5e6][%mdl 32]} g6 {[%emt 0:00:05]} 2. e4 {[%emt 0:00:06]} Bg7 {[%emt 0:00:03]} 3. d4 {[%emt 0:00:03]} d6 {[%emt 0:00:01]} 4. Bc4 {[%emt 0:00:15]} Bg4 {[%emt 0:00:15]} 5. Bxf7+ {[%emt 0:00:04]} Kxf7 {[%emt 0:00:02]} 6. Ng5+ {[%emt 0:00:01][%mdl 64] [#] Discovered Attack. B06: Modern Defence.} Ke8 {[%emt 0:00:03]} 7. Qxg4 {[%emt 0:00:02][%cal Og5h7] aiming for Nxh7!} Qd7 {[%emt 0:00:15]} 8. Qe6 {[%emt 0:01:21] White is clearly better.} Nh6 {[%emt 0:00:16] Against Qf7+} (8... Qxe6 9. Nxe6 Na6) 9. d5 {[%emt 0:00:33]} (9. Qb3 $18 {has better winning chances.} Qc6 10. O-O) 9... Na6 {[%emt 0:00:16]} 10. Qxd7+ {[%emt 0:00:06]} Kxd7 {[%emt 0:00:03]} 11. Ne6 $36 {[%emt 0:00:02][%mdl 2048] [#] White is on the roll.} Nb4 $146 {[%emt 0:00:49] [#]} (11... Be5 {was called for.} 12. Bxh6 Bxb2) ({Predecessor:} 11... Bf6 12. c3 Nf7 13. f4 c5 14. Nd2 Nc7 15. Nxc7 Kxc7 16. Nf3 Rae8 17. O-O e6 {1-0 (32) Szotek,J (2019)-Holub,T (1615) Karvina 2012}) 12. Nxg7 $18 {[%emt 0:00:43] White is clearly winning.} Nxc2+ {[%emt 0:00:03]} 13. Kd1 {[%emt 0:00:02]} Nxa1 {[%emt 0:00:09]} 14. Bxh6 {[%emt 0:00:04]} Rhf8 {[%emt 0:00:39]} 15. f3 {[%emt 0:00:01]} Rf7 {[%emt 0:00:49]} 16. Nc3 {[%emt 0:00:15]} Rg8 {[%emt 0:00:31]} 17. Ne6 {[%emt 0:00:03]} g5 {[%emt 0:00:11]} 18. Kd2 {[%emt 0:00:22]} Rg6 {[%emt 0:00:07]} 19. Nf8+ {[%emt 0:00:03] White took control after the opening.  Weighted Error Value: White=0.24 (precise) /Black=0.62} 1-0

[Event "27th Sharjah International Rapid Chess-c"]
[Site "Sharjah"]
[Date "2022.04.07"]
[Round "5.13"]
[White "Paul Emerson, Gicale"]
[Black "Tolentino, Rustum"]
[Result "0-1"]
[ECO "B48"]
[WhiteElo "1245"]
[BlackElo "2323"]
[Annotator "TA"]
[PlyCount "54"]
[EventDate "2022.04.07"]
[EventType "rapid"]
[EventCountry "UAE"]
[SourceTitle "playchess.com"]
[Source "ChessBase"]
[SourceQuality "1"]
[TimeControl "600+3"]

{[%evp 13,54,0,5,-48,-37,-77,-72,-256,-254,-408,-423,-933,-931,-1135,-1123,-1468,-1283,-1237,-1252,-1195,-903,-903,-887,-866,-858,-990,-981,-1197,-1194,-1179,-1141,-1241,-1239,-29986,-1207,-29989,-29990,-29996,-29997,-29997,-29998,-29998,-29999]} 1. e4 {[%emt 0:00:02]} c5 {[%emt 0:00:01]} 2. Nf3 {[%emt 0:00:02]} e6 {[%emt 0:00:01]} 3. d4 {[%emt 0:00:01]} cxd4 {[%emt 0:00:01]} 4. Nxd4 {[%emt 0:00:02]} Nc6 {[%emt 0:00:02]} 5. Nc3 {[%emt 0:00:01]} Qc7 {[%emt 0:00:01]} 6. Be3 {[%emt 0:00:03]} a6 {[%emt 0:00:03]} 7. a4 {[%emt 0:00:06] 7.g4 is setting a new trend.} Nf6 {[%emt 0:00:19]} 8. f3 {[%emt 0:00:07] B48: Sicilian: Taimanov: 5 Nc3 Qc7 6 Be3 a6 without Be2.} ({Better is} 8. Bd3 $11) 8... Bb4 $15 {[%emt 0:00:03]} 9. Qd2 {[%emt 0:00:25]} d5 {[%emt 0:00:02] [#]} 10. Bd3 $146 {[%emt 0:00:44] [#]} (10. exd5 $17 {was called for.} Nxd5 11. Bc4) ({Predecessor:} 10. exd5 exd5 11. Bd3 O-O 12. O-O Re8 13. Bf2 Bd6 14. g3 Bd7 15. Nf5 Bf8 16. Ne2 {1-0 (61) Hoppe,F (2040)-Qayumi,R (1762) Playchess.com INT 2020}) 10... Nxd4 $19 {[%emt 0:00:13]} 11. Bxd4 {[%emt 0:00:03]} (11. e5 {was worth a try.} Qxe5 12. f4 Nxc2+ 13. Bxc2) 11... e5 {[%emt 0:00:11][%cal Be6e5,Be5d4,Bd4c3][%mdl 32]} 12. O-O-O {[%emt 0:00:22]} (12. Qf2 $142 exd4 13. Qxd4) 12... exd4 {[%emt 0:00:03]} 13. Qg5 {[%emt 0:00:16]} dxc3 {[%emt 0:00:27]} 14. Qxg7 {[%emt 0:00:28]} Qf4+ {[%emt 0:00:02]} 15. Kb1 {[%emt 0:00:04]} Rg8 {[%emt 0:00:02]} 16. g3 {[%emt 0:00:24]} Rxg7 {[%emt 0:00:50]} 17. gxf4 {[%emt 0:00:02]} cxb2 {[%emt 0:00:21]} 18. Kxb2 {[%emt 0:00:08]} d4 {[%emt 0:00:04]} 19. Bc4 {[%emt 0:00:55]} Bc3+ {[%emt 0:00:03]} 20. Kb3 {[%emt 0:00:20]} b5 {[%emt 0:00:45]} 21. axb5 {[%emt 0:00:09]} axb5 {[%emt 0:00:05]} 22. Bxb5+ {[%emt 0:00:06]} Ke7 {[%emt 0:00:04]} 23. Kc4 {[%emt 0:00:27]} Rb8 {[%emt 0:00:12]} (23... Be6+ $142 24. Kc5 Rc8+ 25. Kb6 Rb8+ 26. Kc5 Rgg8 27. Ba6 Nd7+ 28. Kc6 Rb6+ 29. Kc7 Ba5 30. Rb1 Rxb1+ 31. Kc6 Nb8+ 32. Kc5 Bb6#) 24. Rb1 {[%emt 0:00:18]} Be6+ {[%emt 0:00:06] Black mates.} 25. Kd3 {[%emt 0:00:08]} Rg2 {[%emt 0:00:05][%csl Gc3][%cal Rg2d2]} 26. Rhd1 {[%emt 0:00:17]} Nh5 {[%emt 0:00:03][%cal Rh5f4]} 27. e5 {[%emt 0:00:42]} Bd5 {[%emt 0:00:01] White did not feel at home in the position after the opening.  Weighted Error Value: White=1.48/Black=0.40} 0-1

[Event "27th Sharjah International Rapid Chess-c"]
[Site "Sharjah"]
[Date "2022.04.07"]
[Round "5.14"]
[White "Khaled Tarek AlTaher"]
[Black "Storey, Charles H"]
[Result "0-1"]
[ECO "A40"]
[WhiteElo "1330"]
[BlackElo "2220"]
[Annotator "TA"]
[PlyCount "82"]
[EventDate "2022.04.07"]
[EventType "rapid"]
[EventCountry "UAE"]
[SourceTitle "playchess.com"]
[Source "ChessBase"]
[SourceQuality "1"]
[TimeControl "600+3"]

{[%evp 9,81,8,58,22,44,20,55,43,55,41,33,57,45,43,75,19,17,18,21,-7,0,-13,0,-18,14,0,0,0,0,-129,-131,-129,-131,-388,-377,-595,-602,-583,-500,-633,-456,-1091,-439,-439,-439,-406,-404,-395,-400,-436,-435,-433,-433,-429,-429,-615,-614,-585,-555,-572,-541,-631,-539,-2394,-2312,-5631,-5606,-29972,-29973,-29970,-29975,-29992,-29993,-29999]} 1. d4 {[%emt 0:00:01]} g6 {[%emt 0:00:00]} 2. Nf3 {[%emt 0:00:03]} Bg7 {[%emt 0:00:01]} 3. e3 {[%emt 0:00:02]} c5 {[%emt 0:00:25]} 4. c3 {[%emt 0:00:11]} Qc7 {[%emt 0:00:18]} 5. Be2 {[%emt 0:00:06] [#]} a6 $146 {[%emt 0:00:40]} ({Better is} 5... d5 $11) ({Predecessor:} 5... Nf6 6. O-O O-O 7. b4 c4 8. Nbd2 d5 9. Ne5 Nbd7 10. f4 Nb6 11. a4 Be6 12. Bf3 {0-1 (33) Hrivnak,M (2177)-Likavsky,T (2493) Slovakia 2006}) 6. Nbd2 {[%emt 0:00:03][%cal Bb1d2,Bd2e4,Be4g3][%mdl 32] A40: Unusual replies to 1 d4.} d5 {[%emt 0:00:17]} 7. O-O {[%emt 0:00:06]} Nh6 {[%emt 0:00:20]} 8. dxc5 {[%emt 0:00:21] White is slightly better.} Qxc5 {[%emt 0:00:03]} 9. e4 {[%emt 0:00:01]} dxe4 $1 {[%emt 0:00:56]} 10. Nxe4 {[%emt 0:00:05]} Qc6 {[%emt 0:00:06]} 11. Ng3 {[%emt 0:00:18]} O-O {[%emt 0:00:16]} 12. Bg5 {[%emt 0:00:37]} (12. Bf4 $16) 12... Qc7 $11 {[%emt 0:00:33]} 13. Re1 {[%emt 0:00:40]} Nc6 {[%emt 0:00:02]} 14. Qc1 {[%emt 0:01:03]} (14. Qd5 {with more complications.} Ng4 15. h3 Be6 16. Qe4) 14... Nf5 {[%emt 0:00:23]} 15. Nxf5 {[%emt 0:00:04]} Bxf5 {[%emt 0:00:04]} 16. Bh6 {[%emt 0:00:05]} Qb6 {[%emt 0:00:51]} 17. Bxg7 {[%emt 0:00:31]} Kxg7 {[%emt 0:00:01]} 18. Bc4 {[%emt 0:00:20]} Rad8 {[%emt 0:00:57][%cal Ba8d8,Bd8d4,Bd4c4,Bc4c1][%mdl 32]} 19. Nd4 {[%emt 0:01:53]} (19. h3 $11) 19... Nxd4 $17 {[%emt 0:00:25]} 20. cxd4 {[%emt 0:00:02]} Rxd4 {[%emt 0:00:29]} 21. Rxe7 $2 {[%emt 0:00:11][%mdl 8192] [#] This move loses the game for White.} (21. b3 $17) 21... Qc5 $1 $19 {[%emt 0:00:35][%csl LRc4,LRe7]} 22. Rxb7 {[%emt 0:02:22]} (22. Rxf7+ $142 Rxf7 23. Bxf7 Qxc1+ 24. Rxc1 Kxf7 25. f3) 22... Rxc4 {[%emt 0:00:15]} 23. Qd2 {[%emt 0:00:12]} Rc8 {[%emt 0:00:38]} 24. Re1 {[%emt 0:00:44]} Rc1 {[%emt 0:00:22]} 25. Rbe7 {[%emt 0:00:29]} (25. h4 $142) 25... Qxe7 {[%emt 0:00:25]} (25... Be6 $142 26. R7xe6 fxe6) 26. Rxc1 Rxc1+ {[%emt 0:00:47]} 27. Qxc1 {[%emt 0:00:02]} Qe4 {[%emt 0:00:12]} 28. Qc3+ {[%emt 0:00:01]} Kf8 {[%emt 0:00:16]} 29. h3 {[%emt 0:00:08]} Qb1+ {[%emt 0:00:26]} 30. Kh2 {[%emt 0:00:00]} Qxa2 {[%emt 0:00:03]} 31. Qh8+ {[%emt 0:00:25]} Ke7 {[%emt 0:00:01]} 32. Qxh7 {[%emt 0:00:15]} (32. Qc3 $142) 32... Qxb2 {[%emt 0:00:01]} 33. Qh4+ {[%emt 0:00:01]} Qf6 {[%emt 0:00:01]} 34. Qa4 {[%emt 0:00:06]} Qd6+ {[%emt 0:00:04]} 35. g3 {[%emt 0:00:02]} Bd3 {[%emt 0:00:05]} 36. Kg2 {[%emt 0:00:10]} Bb5 {[%emt 0:00:05] [#] ( -> ...Qd5+)} 37. Qb3 {[%emt 0:00:04] Inhibits Qd5+.} Bc6+ {[%emt 0:00:05]} 38. Kg1 {[%emt 0:00:03]} Qd5 {[%emt 0:00:02][%csl Gc6][%cal Rd5g2] Black mates.} 39. Qe3+ {[%emt 0:00:09]} Kf8 {[%emt 0:00:02][%csl Gc6][%cal Rd5h1]} 40. Qh6+ {[%emt 0:00:01]} Kg8 {[%emt 0:00:01][%csl Gc6][%cal Rd5h1]} 41. f4 {[%emt 0:00:03]} Qg2# {[%emt 0:00:08] Weighted Error Value: White=0.89/Black=0.31} 0-1